[Event "76th GEO-ch Women 2019"]
[Site "Tbilisi"]
[Date "2019.03.23"]
[Round "5.3"]
[White "Khomeriki, Nino"]
[Black "Khukhashvili, Sopiko"]
[Result "1-0"]
[ECO "A41"]
[WhiteElo "2347"]
[BlackElo "2342"]
[Annotator "NA"]
[PlyCount "99"]
[EventDate "2019.03.19"]
[EventType "swiss"]
[EventCountry "GEO"]
[SourceTitle "playchess.com"]
[Source "ChessBase"]
[SourceQuality "1"]
[TimeControl "40/5400+30:1800+30"]

{[%evp 8,76,65,42,61,64,72,50,55,58,84,85,78,84,85,62,80,77,67,61,64,61,54,75,77,79,106,89,100,99,93,56,48,16,65,39,110,62,143,157,184,75,320,32767,32767,32767,32767,32767,142,139,32767,176,173,133,179,195,32767,208,216,32767,196,171,216,0,193,195,117,106,97,77,154]} 1. d4 {[%emt 0:00:00]} d6 {[%emt 0:00:00]} 2. Nf3 {[%emt 0:00:00]} Bg4 {[%emt 0:00:00]} 3. g3 {[%emt 0:00:38]} Bxf3 {[%emt 0:00:00]} 4. exf3 {[%emt 0:00:05]} e6 {[%emt 0:00:04]} 5. c4 {[%emt 0:02:24] A41: 1 d4 d6: Tartakower System and Modern Defence} (5. Bg2 d5 6. f4 g6 7. O-O Bg7 8. Be3 Ne7 9. Qd3 O-O 10. Nd2 c5 11. c3 cxd4 12. Bxd4 Bxd4 13. Qxd4 {1-0 (66) Drozdovskij,Y (2616)-Bogdanovich,S (2537) Odessa 2018}) 5... c6 {[%emt 0:02:18]} 6. d5 {[%emt 0:08:40]} exd5 {[%emt 0:02:44]} 7. cxd5 {[%emt 0:00:06]} Nf6 {[%emt 0:00:29]} 8. Nc3 {[%emt 0:02:37]} Be7 {[%emt 0:00:49]} 9. Bg2 {[%emt 0:02:03]} O-O {[%emt 0:01:37]} 10. O-O {[%emt 0:00:42]} Na6 {[%emt 0:01:31]} 11. Re1 {[%emt 0:06:25]} Re8 {[%emt 0:01:14]} 12. f4 {[%emt 0:03:06]} c5 {[%emt 0:02:23]} 13. g4 {[%emt 0:24:30]} Bf8 $146 {[%emt 0:04:47]} 14. Rxe8 {[%emt 0:03:54]} Nxe8 {[%emt 0:00:08]} 15. Ne4 {[%emt 0:10:26]} Nf6 {[%emt 0:03:08] [#]} 16. Ng3 $1 {[%emt 0:01:09]} c4 {[%emt 0:03:51]} 17. Be3 {[%emt 0:02:45]} Nc5 {[%emt 0:04:45]} 18. g5 {[%emt 0:12:01]} Nfd7 {[%emt 0:00:04]} 19. f5 {[%emt 0:00:14]} b5 {[%emt 0:05:43]} 20. h4 {[%emt 0:00:42]} Qe8 {[%emt 0:09:37]} 21. Qd2 {[%emt 0:02:49]} f6 {[%emt 0:06:23] [#]} ({Black should play} 21... a5 $14) 22. Bd4 {[%emt 0:02:01]} (22. Re1 $1 $16 Nd3 23. Re2) 22... Qf7 {[%emt 0:02:30]} (22... Be7 $14) 23. Re1 {[%emt 0:01:03]} a5 {[%emt 0:02:35] [#]} 24. Bf3 {[%emt 0:03:12]} (24. Re6 $1 $18) 24... Ne5 $2 {[%emt 0:00:48]} (24... a4 $14) 25. Bxe5 {[%emt 0:00:53]} fxe5 {[%emt 0:00:14]} 26. Bh5 {[%emt 0:00:31]} Qb7 {[%emt 0:01:05]} 27. f6 {[%emt 0:01:34]} g6 $2 {[%emt 0:02:07]} (27... Kh8 $11) 28. Bg4 {[%emt 0:00:08]} Kf7 {[%emt 0:05:44]} 29. Ne4 {[%emt 0:03:12]} Nd3 {[%emt 0:00:24]} 30. Be6+ {[%emt 0:00:04]} Ke8 {[%emt 0:00:04]} 31. Re3 {[%emt 0:01:37]} Nf4 {[%emt 0:01:08]} 32. Ng3 {[%emt 0:00:18]} Kd8 {[%emt 0:04:47]} 33. Ne2 {[%emt 0:00:41]} Nd3 {[%emt 0:00:30]} 34. Nc1 {[%emt 0:01:56]} Nf4 {[%emt 0:00:31]} 35. Ne2 $2 {[%emt 0:00:10]} (35. b3 $18) 35... Nd3 {[%emt 0:00:31]} 36. Rh3 {[%emt 0:01:35]} Qb6 {[%emt 0:00:23]} 37. Nc1 {[%emt 0:02:02]} Nf4 {[%emt 0:00:13]} 38. Rf3 {[%emt 0:00:16]} b4 $16 {[%emt 0:05:25]} (38... Nxe6 $142 39. dxe6 Qd4) 39. Ne2 {[%emt 0:01:16]} Nxe2+ {[%emt 0:02:02]} 40. Qxe2 {[%emt 0:00:00]} Qd4 {[%emt 0:00:00]} 41. h5 {[%emt 0:06:55]} a4 {[%emt 0:07:57]} 42. hxg6 {[%emt 0:02:49]} hxg6 {[%emt 0:00:03]} 43. Rh3 {[%emt 0:01:41]} Qf4 {[%emt 0:01:34]} 44. Rh7 {[%emt 0:07:41]} Qxg5+ {[%emt 0:09:19]} 45. Bg4 {[%emt 0:00:13]} Qc1+ {[%emt 0:03:22]} 46. Kg2 {[%emt 0:00:07]} b3 {[%emt 0:08:00]} 47. a3 {[%emt 0:01:30]} Ke8 {[%emt 0:00:04]} 48. Qe4 {[%emt 0:03:59]} Qc2 {[%emt 0:00:17]} 49. Qe3 {[%emt 0:01:03]} Qd3 {[%emt 0:01:25]} 50. Bd7+ {[%emt 0:00:10]} 1-0

[Event "76th GEO-ch Women 2019"]
[Site "Tbilisi"]
[Date "2019.03.23"]
[Round "5.4"]
[White "Khurtsilava, Inga"]
[Black "Mikadze, Miranda"]
[Result "0-1"]
[ECO "A01"]
[WhiteElo "2234"]
[BlackElo "2266"]
[Annotator "NA"]
[PlyCount "86"]
[EventDate "2019.03.19"]
[EventType "swiss"]
[EventCountry "GEO"]
[SourceTitle "playchess.com"]
[Source "ChessBase"]
[SourceQuality "1"]
[TimeControl "40/5400+30:1800+30"]

{[%evp 8,68,8,0,15,0,21,9,11,0,2,4,13,-17,7,11,43,11,9,-9,31,12,13,11,15,14,19,18,20,-22,-6,-30,-17,-37,-29,-48,-26,-41,0,-38,0,0,0,-15,0,0,23,26,9,19,27,27,16,32767,32767,32767,32767,-128,-112,-111,32767,-205,-218]} 1. b3 {[%emt 0:00:00]} e5 {[%emt 0:00:00]} 2. Bb2 {[%emt 0:00:00]} Nc6 {[%emt 0:00:00]} 3. e3 {[%emt 0:00:00]} d5 {[%emt 0:00:00]} 4. Nf3 {[%emt 0:00:51]} Bd6 {[%emt 0:04:55]} 5. Bb5 {[%emt 0:02:23]} f6 {[%emt 0:00:29]} 6. c4 {[%emt 0:03:22]} a6 {[%emt 0:03:14] A01: Nimzowitsch-Larsen Opening} (6... Nge7 7. Nc3 a6 8. Ba4 O-O 9. O-O Nb4 10. d4 e4 11. Ne1 Be6 12. a3 Nbc6 13. Bxc6 bxc6 14. c5 Bxh2+ 15. Kxh2 {½-½ (62) Zhao,X (2506)-Kosteniuk,A (2554) Huaian 2016}) 7. Bxc6+ {[%emt 0:07:54]} bxc6 {[%emt 0:00:18]} 8. Qc2 {[%emt 0:00:06]} Be6 {[%emt 0:01:02]} 9. d3 {[%emt 0:04:14]} Nh6 {[%emt 0:02:30]} 10. e4 $146 {[%emt 0:02:57]} ({Predecessor:} 10. O-O O-O 11. Ba3 Qd7 12. Bxd6 cxd6 13. Nc3 dxc4 14. dxc4 {0-1 (50) Gonzalez Rodriguez,J (2372)-Jerez Perez,A (2405) Barcelona 2015}) 10... dxe4 {[%emt 0:06:07]} 11. dxe4 {[%emt 0:00:10]} Qe7 {[%emt 0:01:01]} 12. Bc1 {[%emt 0:03:10]} Nf7 {[%emt 0:02:03]} 13. Be3 {[%emt 0:00:27]} Bc5 {[%emt 0:00:48]} 14. Bxc5 {[%emt 0:01:04]} Qxc5 {[%emt 0:00:02]} 15. Nc3 {[%emt 0:00:12]} O-O {[%emt 0:00:33]} 16. O-O {[%emt 0:05:34]} Nd8 {[%emt 0:09:10]} 17. Na4 {[%emt 0:12:41]} Qe7 {[%emt 0:00:42]} 18. c5 {[%emt 0:00:04]} a5 {[%emt 0:06:55]} 19. Nh4 {[%emt 0:07:46]} g6 {[%emt 0:03:14]} 20. Rad1 {[%emt 0:03:28]} Bc8 {[%emt 0:01:03]} 21. Rd2 {[%emt 0:05:30]} Ne6 {[%emt 0:00:19]} 22. Nf3 {[%emt 0:00:23]} g5 {[%emt 0:08:37]} 23. Qc3 {[%emt 0:02:26]} Qf7 {[%emt 0:05:24]} 24. Rfd1 {[%emt 0:00:48]} Qh5 {[%emt 0:01:57]} 25. Qe3 {[%emt 0:01:05]} Nf4 {[%emt 0:01:45]} (25... g4 $5 26. Ne1 $8 Ba6 $14) 26. Ne1 {[%emt 0:00:51]} Bg4 {[%emt 0:04:59]} 27. f3 {[%emt 0:00:33]} Be6 {[%emt 0:00:13]} 28. Nd3 {[%emt 0:01:05]} Kh8 {[%emt 0:00:54]} 29. Nc3 {[%emt 0:03:17]} Rg8 {[%emt 0:03:19]} 30. Ne2 {[%emt 0:04:51]} a4 {[%emt 0:03:46]} 31. Ng3 {[%emt 0:01:36]} Qf7 {[%emt 0:06:02]} 32. Nf5 {[%emt 0:03:16]} (32. Nc1 $15) 32... Bxf5 {[%emt 0:07:10]} 33. exf5 {[%emt 0:00:03]} axb3 {[%emt 0:00:49]} 34. Nxf4 {[%emt 0:00:56]} (34. axb3 $17 Qxb3 35. Qe1) 34... bxa2 $19 {[%emt 0:02:31]} ({And not} 34... gxf4 35. Qxb3 Qxb3 36. axb3 $11) 35. Ra1 {[%emt 0:17:18]} gxf4 {[%emt 0:00:28]} 36. Qe2 {[%emt 0:00:24]} Qh5 {[%emt 0:10:30]} 37. Rdxa2 {[%emt 0:02:03]} Rxa2 {[%emt 0:00:03]} 38. Rxa2 {[%emt 0:00:13]} Qxf5 {[%emt 0:00:05]} 39. Qe4 {[%emt 0:00:09]} Qd7 {[%emt 0:00:19]} 40. Rc2 {[%emt 0:00:00]} Qd1+ {[%emt 0:00:00]} 41. Kf2 {[%emt 0:06:16]} Qh1 {[%emt 0:02:59]} 42. g4 {[%emt 0:03:49]} Rxg4 {[%emt 0:04:12]} 43. Ke2 {[%emt 0:05:42]} Rg2+ {[%emt 0:00:31]} 0-1

[Event "76th GEO-ch Women 2019"]
[Site "Tbilisi"]
[Date "2019.03.23"]
[Round "5.5"]
[White "Tsatsalashvili, Keti"]
[Black "Arabidze, Meri"]
[Result "1/2-1/2"]
[ECO "A13"]
[WhiteElo "2326"]
[BlackElo "2392"]
[Annotator "NA"]
[PlyCount "187"]
[EventDate "2019.03.19"]
[EventType "swiss"]
[EventCountry "GEO"]
[SourceTitle "playchess.com"]
[Source "ChessBase"]
[SourceQuality "1"]
[TimeControl "40/5400+30:1800+30"]

1. c4 {[%emt 0:00:00]} e6 {[%emt 0:00:00]} 2. Nf3 {[%emt 0:00:00]} d5 {[%emt 0:00:00]} 3. e3 {[%emt 0:00:00]} Nf6 {[%emt 0:01:07]} 4. Nc3 {[%emt 0:00:27]} dxc4 {[%emt 0:05:28]} 5. Bxc4 {[%emt 0:00:11]} a6 {[%emt 0:00:01]} 6. a4 {[%emt 0:00:45]} c5 {[%emt 0:01:23]} 7. O-O {[%emt 0:01:03]} Nc6 {[%emt 0:00:30]} 8. d4 {[%emt 0:01:48]} Be7 {[%emt 0:02:11]} 9. Qe2 {[%emt 0:02:33]} cxd4 {[%emt 0:08:21]} 10. Rd1 {[%emt 0:00:33]} O-O {[%emt 0:01:35]} 11. exd4 {[%emt 0:02:00]} Nb4 {[%emt 0:00:12]} 12. Ne5 {[%emt 0:04:45]} Nbd5 {[%emt 0:14:15]} 13. Bg5 {[%emt 0:02:58]} h6 {[%emt 0:03:45] D27: Queen's Gambit Accepted: Classical main line: 7 e4!? and 7 a4} (13... Re8 14. Qf3 Rf8 15. Bh4 Nxc3 16. bxc3 Nd7 17. Nxd7 Qxd7 18. Bg3 Bd6 19. Bd3 Bxg3 20. hxg3 g6 21. g4 {1-0 (37) Rajesh,V (2406)-Sorensen,H (2289) Lisbon 2019}) 14. Bh4 {[%emt 0:01:59] LiveBook: 3 Games} Re8 {[%emt 0:05:52]} 15. Qf3 {[%emt 0:02:38]} Nxc3 {[%emt 0:08:35]} 16. bxc3 {[%emt 0:00:44]} Qc7 {[%emt 0:00:11]} 17. Bd3 $146 {[%emt 0:09:27]} ({Predecessor:} 17. Bb3 Bd7 18. Bg3 Bd6 19. a5 Rac8 20. Rdc1 {0-1 (37) Kolesar,M (2209)-Hlavacek,T (2019) Tatranska Lomnica 2017}) 17... Bd7 {[%emt 0:04:04]} 18. Be4 {[%emt 0:05:15]} Rab8 {[%emt 0:10:09] [#]} 19. c4 $1 {[%emt 0:03:49]} Rf8 {[%emt 0:09:30]} 20. Bc2 {[%emt 0:10:07]} Bc6 {[%emt 0:01:41]} 21. Qe2 {[%emt 0:04:10]} Rbc8 {[%emt 0:03:01]} 22. Rd3 {[%emt 0:05:17]} ({But not} 22. Bxf6 $6 Bxf6 23. f4 (23. Nxc6 Qxc6 24. Rac1 Bg5 $15) 23... Rfd8 $11) ({White should try} 22. Bg3 $16) 22... Rfd8 {[%emt 0:01:16]} 23. Rad1 {[%emt 0:08:55]} Be4 {[%emt 0:01:43]} 24. Rg3 {[%emt 0:03:48]} Bxc2 {[%emt 0:00:41]} 25. Qxc2 {[%emt 0:00:14]} Nh5 {[%emt 0:03:36]} (25... g5 $15 26. Bxg5 hxg5 27. Rxg5+ Kf8) 26. Bxe7 {[%emt 0:03:20]} Qxe7 {[%emt 0:00:09]} 27. Rb3 {[%emt 0:00:54]} Nf6 {[%emt 0:02:39]} 28. h3 {[%emt 0:00:31]} Rc7 {[%emt 0:01:57]} 29. c5 {[%emt 0:04:48]} Nd7 {[%emt 0:05:08]} 30. Nc4 {[%emt 0:00:50]} Nf6 {[%emt 0:00:36]} 31. Qb1 {[%emt 0:04:04]} Nd5 $16 {[%emt 0:03:03]} 32. Nd6 {[%emt 0:04:23]} Rdd7 {[%emt 0:00:30]} 33. a5 {[%emt 0:03:37]} Nf6 {[%emt 0:00:07]} 34. Qa1 {[%emt 0:01:05]} Ne8 {[%emt 0:01:09]} 35. Nc4 {[%emt 0:00:17]} Nf6 {[%emt 0:00:37]} 36. Rdb1 {[%emt 0:02:02]} Ne4 {[%emt 0:01:35]} 37. Re1 {[%emt 0:02:48]} Nf6 {[%emt 0:00:14]} 38. Nb6 {[%emt 0:01:50]} Rd8 {[%emt 0:00:07]} 39. Qb2 {[%emt 0:00:17]} Nd5 {[%emt 0:00:42]} 40. Nc4 {[%emt 0:00:00]} Nf4 {[%emt 0:00:00]} 41. Nd6 {[%emt 0:03:33]} Qg5 {[%emt 0:09:34]} 42. Rg3 {[%emt 0:00:35]} Qf6 {[%emt 0:01:48]} 43. Qd2 {[%emt 0:02:13]} Ng6 {[%emt 0:02:46]} 44. Rf3 {[%emt 0:08:09]} Qh4 {[%emt 0:02:23]} 45. Qe3 {[%emt 0:07:32]} Qg5 {[%emt 0:09:43]} 46. Rg3 {[%emt 0:07:32]} Qd5 {[%emt 0:01:48]} 47. f4 {[%emt 0:01:16]} Ne7 {[%emt 0:01:30]} 48. Qe5 {[%emt 0:01:52]} Qxe5 {[%emt 0:00:32]} 49. dxe5 {[%emt 0:00:33]} Rb8 {[%emt 0:02:28]} 50. Rc1 {[%emt 0:00:21]} Nc6 {[%emt 0:00:46]} 51. Ra3 {[%emt 0:00:57]} Kf8 {[%emt 0:00:27]} 52. Kh2 {[%emt 0:00:19]} Ke7 {[%emt 0:00:23]} 53. Kg3 {[%emt 0:01:13]} g5 {[%emt 0:01:27]} 54. Kf3 {[%emt 0:01:49]} gxf4 {[%emt 0:00:44]} 55. Kxf4 {[%emt 0:00:11]} Rg8 {[%emt 0:00:18]} 56. g4 {[%emt 0:00:26]} Rg5 {[%emt 0:00:21]} 57. Re1 {[%emt 0:01:27]} Nb4 {[%emt 0:01:17]} 58. h4 {[%emt 0:00:36]} Rg8 {[%emt 0:01:58]} 59. Rb1 {[%emt 0:01:05]} Nd5+ {[%emt 0:00:38]} 60. Kf3 {[%emt 0:00:09]} Rxc5 {[%emt 0:00:09]} 61. Rxb7+ {[%emt 0:00:05]} Rc7 {[%emt 0:00:24]} 62. Rab3 {[%emt 0:01:04]} f6 {[%emt 0:00:32]} 63. Rxc7+ Nxc7 {[%emt 0:00:01]} 64. Rb7 {[%emt 0:02:45]} fxe5 {[%emt 0:00:11]} 65. Nc4 {[%emt 0:00:19]} e4+ {[%emt 0:01:06]} 66. Kf4 {[%emt 0:01:16]} Kd7 {[%emt 0:00:01]} 67. Ne5+ {[%emt 0:00:21]} Kc8 {[%emt 0:00:15]} 68. Rb3 {[%emt 0:00:30]} Nd5+ {[%emt 0:01:51]} 69. Kxe4 {[%emt 0:00:02]} Nf6+ {[%emt 0:00:21]} 70. Kf3 {[%emt 0:01:12]} Nd5 {[%emt 0:00:24]} 71. Kg3 {[%emt 0:00:22]} Kc7 {[%emt 0:01:05]} 72. Rf3 {[%emt 0:00:32]} h5 {[%emt 0:00:36]} 73. g5 {[%emt 0:00:28]} Ne7 {[%emt 0:00:01]} 74. Rf7 {[%emt 0:00:29]} Kd6 {[%emt 0:00:08]} 75. Nc4+ {[%emt 0:00:09]} Kd7 {[%emt 0:00:04]} 76. Rh7 {[%emt 0:00:29]} e5 {[%emt 0:01:48]} 77. Nxe5+ {[%emt 0:00:40]} Ke6 {[%emt 0:00:02]} 78. Nd3 {[%emt 0:00:36]} Nf5+ {[%emt 0:00:13]} 79. Kh3 {[%emt 0:00:13]} Rc8 {[%emt 0:00:37]} 80. Nf4+ {[%emt 0:00:16]} Ke5 {[%emt 0:00:05]} 81. Nxh5 {[%emt 0:00:33]} Rc3+ {[%emt 0:00:07]} 82. Kh2 {[%emt 0:00:14]} Rc2+ {[%emt 0:00:31]} 83. Kh1 {[%emt 0:00:21]} Nxh4 {[%emt 0:00:42]} 84. Ng3 {[%emt 0:01:51]} Rc1+ {[%emt 0:00:27]} 85. Kh2 {[%emt 0:00:03]} Nf3+ {[%emt 0:00:06]} 86. Kg2 {[%emt 0:00:03]} Nxg5 {[%emt 0:00:50]} 87. Rh5 {[%emt 0:00:34]} Rc2+ {[%emt 0:00:25]} 88. Kf1 {[%emt 0:00:47]} Kf4 {[%emt 0:00:19]} 89. Ne2+ {[%emt 0:00:14]} Kg4 {[%emt 0:00:43]} 90. Rh6 {[%emt 0:00:09]} Ne4 {[%emt 0:01:44]} 91. Rxa6 {[%emt 0:00:39]} Nd2+ {[%emt 0:00:29]} 92. Kf2 {[%emt 0:00:27]} Nb3 {[%emt 0:00:17]} 93. Ke3 {[%emt 0:01:25]} Ra2 {[%emt 0:00:41]} 94. Nc3 {[%emt 0:00:15]} 1/2-1/2

[Event "76th GEO-ch Women 2019"]
[Site "Tbilisi"]
[Date "2019.03.23"]
[Round "5.6"]
[White "Esadze, Tamari"]
[Black "Vakhania, Aleksandra"]
[Result "0-1"]
[ECO "B15"]
[WhiteElo "2078"]
[BlackElo "2175"]
[Annotator "NA"]
[PlyCount "68"]
[EventDate "2019.03.19"]
[EventType "swiss"]
[EventCountry "GEO"]
[SourceTitle "playchess.com"]
[Source "ChessBase"]
[SourceQuality "1"]
[TimeControl "40/5400+30:1800+30"]

{[%evp 8,35,36,37,31,13,22,10,33,2,2,0,5,7,16,14,10,13,27,27,23,25,67,77,103,70,81,76,65,81]} 1. e4 {[%emt 0:00:00]} c6 {[%emt 0:00:00]} 2. d4 {[%emt 0:00:00]} d5 {[%emt 0:00:00]} 3. Nc3 {[%emt 0:00:00]} dxe4 {[%emt 0:00:55]} 4. Nxe4 {[%emt 0:00:00]} Nf6 {[%emt 0:00:11]} 5. Nxf6+ {[%emt 0:00:14]} exf6 {[%emt 0:00:53]} 6. Nf3 {[%emt 0:00:27]} Bd6 {[%emt 0:00:14]} 7. Bd3 {[%emt 0:01:20]} O-O {[%emt 0:00:24]} 8. O-O {[%emt 0:00:06]} Bg4 {[%emt 0:01:03]} 9. h3 {[%emt 0:03:40] LiveBook: 23 Games} Bh5 {[%emt 0:00:10] B15: Caro-Kann: 3 Nc3: 3...g6 and 3...dxe4 4 Nxe4 Nf6 5 Nxf6+ exf6} 10. Re1 {[%emt 0:05:24]} (10. Be4 Re8 11. Qd3 Bg6 12. Bxg6 hxg6 13. Bd2 Nd7 {½-½ (13) Ghaem Maghami,E (2574)-Berkes,F (2648) Rasht 2017}) 10... c5 {[%emt 0:02:21]} 11. dxc5 $146 {[%emt 0:12:52]} ({Predecessor:} 11. g4 Bg6 12. Bxg6 hxg6 13. dxc5 Bxc5 14. Be3 Qb6 15. Bxc5 Qxc5 16. Qd4 Qc7 17. Rad1 {½-½ (51) Tompa,J (2445)-Okrajek,A (2240) Cappelle-la-Grande 1991}) 11... Bxc5 {[%emt 0:00:07]} 12. Be3 {[%emt 0:01:26]} Bd6 {[%emt 0:01:51]} 13. Be4 {[%emt 0:03:09]} Nc6 {[%emt 0:06:56]} 14. Qd5 {[%emt 0:10:35]} f5 {[%emt 0:21:12]} 15. Bg5 {[%emt 0:10:14]} ({Don't play} 15. Qxf5 Bg6 $11) 15... Qb6 {[%emt 0:16:14]} 16. Bxf5 {[%emt 0:10:58]} ({Of course not} 16. Qxd6 $6 fxe4 17. Nd2 (17. Rxe4 h6 $17) 17... Qxb2 $15) 16... Bc5 {[%emt 0:03:44]} 17. Bh4 {[%emt 0:20:17]} Bxf3 $1 {[%emt 0:10:25]} 18. Qxf3 $16 {[%emt 0:00:24]} ({Of course not} 18. gxf3 $6 Rad8 $11) 18... Nd4 {[%emt 0:01:14]} 19. Qd3 {[%emt 0:02:05]} Qh6 {[%emt 0:07:37]} 20. Be7 {[%emt 0:03:58]} Bxe7 {[%emt 0:09:31]} 21. Rxe7 {[%emt 0:00:04]} Qf6 {[%emt 0:01:57]} 22. Bxh7+ {[%emt 0:02:00]} Kh8 {[%emt 0:00:06]} 23. Rd7 {[%emt 0:03:09]} Ne6 {[%emt 0:03:12]} 24. Qf5 {[%emt 0:05:17]} Qh6 {[%emt 0:03:36]} 25. Rxf7 {[%emt 0:00:22]} Rxf7 {[%emt 0:02:28]} 26. Qxf7 {[%emt 0:00:03]} Kxh7 {[%emt 0:00:12]} 27. Re1 {[%emt 0:00:57]} Ng5 {[%emt 0:02:37]} 28. Qxb7 {[%emt 0:00:47]} Rf8 {[%emt 0:00:18]} 29. Qe7 {[%emt 0:01:39]} Rf6 {[%emt 0:00:24]} 30. Qd8 {[%emt 0:02:31]} Rg6 {[%emt 0:02:57]} 31. Re8 {[%emt 0:00:56]} Nf3+ {[%emt 0:00:39]} 32. Kf1 {[%emt 0:00:03]} Qc1+ {[%emt 0:00:16]} 33. Ke2 {[%emt 0:00:01]} Ng1+ {[%emt 0:00:55]} 34. Kd3 {[%emt 0:00:03]} Rd6+ {[%emt 0:00:10] Kd4} 0-1

[Event "76th GEO-ch Women 2019"]
[Site "Tbilisi"]
[Date "2019.03.24"]
[Round "6.1"]
[White "Melia, Salome"]
[Black "Vakhania, Aleksandra"]
[Result "1-0"]
[ECO "B06"]
[WhiteElo "2385"]
[BlackElo "2175"]
[Annotator "NA"]
[PlyCount "97"]
[EventDate "2019.03.19"]
[EventType "swiss"]
[EventCountry "GEO"]
[SourceTitle "playchess.com"]
[Source "ChessBase"]
[SourceQuality "1"]
[TimeControl "40/5400+30:1800+30"]

1. e4 {[%emt 0:00:00]} g6 {[%emt 0:00:00]} 2. d4 {[%emt 0:00:00]} Bg7 {[%emt 0:00:00]} 3. Nf3 {[%emt 0:01:02]} c6 {[%emt 0:03:04]} 4. Nc3 {[%emt 0:00:51]} d6 {[%emt 0:01:00]} 5. a4 {[%emt 0:01:29]} Nf6 {[%emt 0:02:17]} 6. Be2 {[%emt 0:00:22]} O-O {[%emt 0:01:10]} 7. O-O {[%emt 0:00:10]} d5 {[%emt 0:10:48] B08: Pirc Defence: Classical System} (7... Qc7 8. e5 dxe5 9. Nxe5 Nbd7 10. Bf4 Nxe5 11. Bxe5 Qd8 12. a5 Bf5 13. Re1 Nd5 14. Bf3 Nb4 15. Bxg7 Kxg7 16. Be4 Bxe4 17. Nxe4 b6 18. c3 {1-0 (70) So,W (2780)-Duda,J (2737) chess.com INT 2018}) 8. e5 {[%emt 0:02:21]} Ne4 {[%emt 0:00:04]} 9. Nxe4 {[%emt 0:02:13]} dxe4 {[%emt 0:00:06]} 10. Ng5 {[%emt 0:00:04]} c5 {[%emt 0:00:29]} 11. dxc5 {[%emt 0:18:43]} Qc7 {[%emt 0:00:14]} 12. Nxe4 {[%emt 0:03:23]} Bxe5 $146 {[%emt 0:05:37]} ({Predecessor:} 12... Rd8 13. Bd3 Bxe5 14. Qf3 Bxh2+ 15. Kh1 {½-½ (25) Voelker,J-Voth,J USA corr 1991}) 13. f4 {[%emt 0:02:15]} Bg7 {[%emt 0:00:27]} 14. c3 {[%emt 0:02:49]} Bf5 {[%emt 0:01:07]} 15. Bf3 {[%emt 0:00:37]} Na6 {[%emt 0:02:34]} 16. c6 {[%emt 0:04:07]} Qxc6 {[%emt 0:03:06]} 17. Qe2 {[%emt 0:00:07]} Nc5 {[%emt 0:09:58]} 18. Nxc5 {[%emt 0:03:33]} Qxc5+ {[%emt 0:00:08]} 19. Be3 {[%emt 0:00:01]} Qc7 {[%emt 0:07:33]} 20. Qb5 {[%emt 0:03:04]} Bd7 {[%emt 0:07:31]} 21. Qxb7 {[%emt 0:04:14]} Qxb7 {[%emt 0:00:05]} 22. Bxb7 {[%emt 0:00:08]} Rab8 {[%emt 0:00:01]} 23. Bf3 {[%emt 0:00:34]} Rxb2 {[%emt 0:00:09]} 24. Rfd1 {[%emt 0:13:20]} Be6 {[%emt 0:04:24]} 25. Bxa7 {[%emt 0:01:02]} Bxc3 {[%emt 0:02:29]} 26. Bd4 {[%emt 0:06:04]} Bxd4+ $1 {[%emt 0:01:44]} 27. Rxd4 {[%emt 0:00:03]} Bc8 $1 {[%emt 0:00:33]} 28. a5 {[%emt 0:03:12]} Bb7 $1 {[%emt 0:06:25]} 29. a6 $14 {[%emt 0:09:31]} Bxf3 {[%emt 0:07:59]} 30. gxf3 {[%emt 0:00:08]} Ra8 {[%emt 0:02:39]} 31. Rd7 {[%emt 0:09:21]} Kf8 {[%emt 0:01:44]} 32. Rc7 {[%emt 0:01:13]} Ke8 {[%emt 0:18:24]} 33. Rd1 {[%emt 0:03:56]} Rd8 {[%emt 0:01:29]} 34. Rxd8+ {[%emt 0:02:02]} Kxd8 {[%emt 0:00:05]} 35. a7 {[%emt 0:00:11]} Kxc7 {[%emt 0:01:11]} 36. a8=Q {[%emt 0:00:04]} Rb7 {[%emt 0:00:27]} 37. Qe8 {[%emt 0:02:22]} f5 {[%emt 0:00:31]} 38. Qxe7+ {[%emt 0:00:32]} Kc6 {[%emt 0:00:03]} 39. Qe6+ {[%emt 0:00:33]} Kc7 {[%emt 0:00:07]} 40. Kg2 {[%emt 0:00:00]} Rb2+ {[%emt 0:00:00]} 41. Kg3 {[%emt 0:00:44]} Rd2 {[%emt 0:01:09]} 42. Qc4+ {[%emt 0:00:52]} Kd8 {[%emt 0:00:55]} 43. Qg8+ {[%emt 0:03:57]} Ke7 {[%emt 0:00:40]} 44. Qxh7+ {[%emt 0:01:28]} Kf6 {[%emt 0:00:06]} 45. Qh8+ {[%emt 0:00:07]} Kf7 {[%emt 0:00:04]} 46. h4 {[%emt 0:00:32]} Rd6 {[%emt 0:05:04]} 47. Qh7+ {[%emt 0:01:07]} Kf6 {[%emt 0:01:48]} 48. Qg8 {[%emt 0:00:40]} Rd7 {[%emt 0:00:33]} 49. h5 {[%emt 0:02:26]} 1-0